bitfinex-derivatives/quotes_ETHF0:USTF0_20250430
["timestamp","ask_amount","ask_price","bid_price","bid_amount"]
[1745971200440,1.76319509,1798.3,1798.1,3.2078]
[1745971200640,0.91879509,1798.2,1798.1,3.2078]
[1745971201140,0.852,1798.2,1798.1,3.2078]
[1745971203141,0.852,1798.2,1798.1,4.3198]
[1745971203337,0.852,1798.2,1798.1,6.0272]
[1745971203535,2.5581,1798.2,1798.1,6.0272]
[1745971203938,3.67004,1798.2,1798.1,6.0272]
[1745971204139,1.1119,1798.3,1798.2,1.11188]
[1745971204339,3.6274,1798.3,1798.2,1.11188]
[1745971204640,3.6274,1798.3,1798.2,2.81928]
[1745971204843,1.1119,1798.3,1798.2,2.81928]
[1745971205041,1.1119,1798.3,1798.2,2.81934]
[1745971205338,1.11198,1798.2,1798.0,1.689]
[1745971205545,1.11198,1798.2,1798.1,1.11193]
[1745971205938,1.11198,1798.2,1798.1,2.75823]
[1745971206140,1.11193,1798.3,1798.2,1.11188]
[1745971206438,1.11193,1798.3,1798.2,2.75818]
[1745971207843,1.1118,1798.5,1798.4,1.11182]
[1745971208047,4.31956,1798.6,1798.5,1.11175]
[1745971208347,1.11176,1798.6,1798.5,1.11175]
[1745971209450,10.45534359,1798.6,1798.5,1.11175]
[1745971209841,1.11175,1798.5,1798.4,2.75807]
[1745971210138,1.17854509,1798.5,1798.4,2.75807]
[1745971210343,1.11175,1798.5,1798.4,2.75807]
[1745971210648,10.3885285,1798.6,1798.5,1.11175]
[1745971210858,10.3885285,1798.6,1798.5,2.76585]
[1745971211045,10.45532359,1798.6,1798.5,2.76585]
[1745971211241,2.77941,1798.5,1798.2,3.658]
[1745971211548,2.77941,1798.5,1798.1,3.2078]
[1745971211549,1.11194,1798.2,1798.1,4.31975]
[1745971211742,1.11193,1798.3,1798.2,1.11191]
[1745971212147,1.17872509,1798.3,1798.2,1.11191]
[1745971212349,1.11194,1798.2,1798.1,5.94396]
[1745971212547,1.17873509,1798.2,1798.1,5.94396]
[1745971213146,1.17873509,1798.2,1798.1,4.31976]
[1745971214047,6.8658,1798.6,1798.4,1.11175]
[1745971214242,1.11179,1798.5,1798.4,1.11175]
[1745971214443,4.38631509,1798.6,1798.5,1.11175]
[1745971214943,4.38628509,1798.6,1798.5,1.11175]
[1745971216252,1.17848509,1798.6,1798.5,1.11175]
[1745971216550,0.06679509,1798.6,1798.5,1.11175]
[1745971216748,1.17848509,1798.6,1798.5,1.11175]
[1745971218048,1.11162,1798.8,1798.7,1.1116]
[1745971218558,1.17841509,1798.8,1798.7,1.1116]
[1745971218853,1.17841509,1798.8,1798.7,2.7298]
[1745971219850,1.11163,1798.7,1798.6,1.11164]
[1745971220050,0.85969509,1798.7,1798.6,1.11164]
[1745971220250,0.85969509,1798.7,1798.6,2.72984]
[1745971220457,1.97132509,1798.7,1798.6,2.72984]
[1745971221553,3.2078,1799.0,1798.8,1.11151]
[1745971221758,0.06679509,1798.8,1798.7,6.81343]
[1745971221953,0.06679509,1798.8,1798.7,7.67743]
[1745971222156,1.1114,1799.1,1799.0,1.11138]
[1745971222455,1.1114,1799.1,1799.0,4.31918]
[1745971222654,1.17819509,1799.1,1799.0,4.31918]
[1745971223454,1.17819509,1799.1,1799.0,5.11088]
[1745971224059,1.17819509,1799.1,1799.0,1.90308]
[1745971224861,2.81899509,1799.1,1799.0,1.90308]
[1745971226463,1.17819509,1799.1,1799.0,1.90308]
[1745971227059,7.40686493,1799.5,1799.4,1.1112]
[1745971227253,7.40686493,1799.5,1799.4,7.976]
[1745971228049,7.40686493,1799.5,1799.4,9.6818]
[1745971229363,7.40686493,1799.5,1799.4,10.13037725]
[1745971229865,4.34678,1799.8,1799.7,1.11101]
[1745971230254,4.41357509,1799.8,1799.7,1.11101]
[1745971231757,1.11101,1799.7,1799.6,6.82833]
[1745971231960,2.80410509,1799.7,1799.6,6.82833]
[1745971233462,1.69309509,1799.7,1799.6,6.82833]
[1745971233760,0.8477,1799.8,1799.7,1.11101]
[1745971233962,0.8477,1799.8,1799.7,2.75981]
[1745971234261,0.8477,1799.8,1799.7,6.41581]
[1745971234463,3.61915,1799.8,1799.7,6.41581]
[1745971235461,3.68594509,1799.8,1799.7,6.41581]
[1745971237659,3.68594509,1799.8,1799.7,1.6488]
[1745971237858,2.77763,1799.7,1799.1,3.2078]
[1745971238064,1.17809509,1799.3,1799.2,1.11126]
[1745971238362,1.17809509,1799.3,1799.2,4.76126]
[1745971238563,4.40425,1799.4,1799.3,1.11126]
[1745971238857,1.11132,1799.2,1799.1,3.2078]
[1745971239062,1.17811509,1799.2,1799.1,4.76138]
[1745971239263,1.11144,1799.1,1799.0,4.7614]
[1745971239459,2.79443509,1799.1,1799.0,4.7614]
[1745971239864,1.68299509,1799.1,1799.0,4.7614]
[1745971240259,1.11131,1799.3,1799.2,1.11127]
[1745971240662,0.06679509,1799.3,1799.2,1.11127]
[1745971240862,0.06679509,1799.3,1799.2,2.69047]
[1745971241366,1.6162,1799.3,1799.2,2.69047]
[1745971241769,2.74134,1799.4,1799.3,1.11126]
[1745971241968,2.80813509,1799.4,1799.3,2.69046]
[1745971242169,4.42433509,1799.4,1799.3,2.69046]
[1745971246069,4.42433509,1799.4,1799.3,1.11126]
[1745971248870,4.42434509,1799.4,1799.3,1.11126]
[1745971250376,1.11126,1799.3,1799.2,4.31908]
[1745971250572,2.79105509,1799.3,1799.2,4.31908]
[1745971252476,2.79105509,1799.3,1799.2,6.79838]
[1745971254075,2.79105509,1799.3,1799.2,4.31908]
[1745971254373,1.11132,1799.2,1799.1,5.58234]
[1745971254677,2.75911509,1799.2,1799.1,4.76134]
[1745971254880,2.75911509,1799.2,1799.1,1.11134]
[1745971257283,1.11138,1799.1,1799.0,4.7614]
[1745971257487,3.73317509,1799.1,1799.0,4.7614]
[1745971257884,3.73317509,1799.1,1799.0,1.1114]
[1745971259587,3.73317509,1799.1,1799.0,2.7933]
[1745971259991,2.62179509,1799.1,1799.0,2.7933]
[1745971260289,1.77279509,1799.1,1799.0,2.7933]
[1745971260585,2.88417509,1799.1,1799.0,2.7933]
[1745971261274,1.77279509,1799.1,1799.0,2.7933]
[1745971262089,2.88417509,1799.1,1799.0,2.7933]
[1745971262681,1.11136,1799.2,1799.1,1.11132]
[1745971262888,0.815,1799.4,1799.3,1.11126]
[1745971263074,3.57306,1799.5,1799.4,1.1112]
[1745971263280,1.17804509,1799.4,1799.3,1.11121]
[1745971263484,2.80134509,1799.4,1799.3,1.11121]
[1745971263787,1.11126,1799.3,1799.2,1.11128]
[1745971263989,1.11132,1799.2,1799.1,8.76623]
[1745971264188,1.97101509,1799.2,1799.1,10.37093]
[1745971264387,1.90422,1799.2,1799.1,10.37093]
[1745971264781,0.7929,1799.2,1799.1,10.37093]
[1745971264977,1.90422,1799.2,1799.1,10.37093]
[1745971265176,1.90422,1799.2,1799.1,9.57483]
[1745971265389,2.77141509,1799.2,1799.1,9.57483]
[1745971265583,2.77141509,1799.2,1799.1,5.92383]
[1745971266387,2.77141509,1799.2,1799.1,3.2078]
[1745971266690,1.11138,1799.1,1799.0,5.61465]
[1745971266885,1.6505,1799.1,1799.0,5.61465]
[1745971267092,1.11128,1799.3,1799.2,1.11127]
[1745971267394,1.17811509,1799.2,1799.1,2.80813]
[1745971267682,0.06679509,1799.2,1799.1,2.80813]
[1745971267890,1.17814509,1799.2,1799.1,1.11133]
[1745971268279,1.11138,1799.1,1799.0,1.1114]
[1745971268483,2.03987509,1799.1,1799.0,1.1114]
[1745971268994,0.92849509,1799.1,1799.0,1.1114]
[1745971269791,2.03987509,1799.1,1799.0,1.1114]
[1745971270185,0.92849509,1799.1,1799.0,1.1114]
[1745971270591,2.03987509,1799.1,1799.0,1.1114]
[1745971270784,0.92849509,1799.1,1799.0,1.1114]
[1745971271291,2.03987509,1799.1,1799.0,1.1114]
[1745971273189,1.11156,1798.9,1798.8,1.11151]
[1745971273388,1.11163,1798.8,1798.7,1.11159]
[1745971273593,2.83993,1798.8,1798.7,1.11159]
[1745971273785,2.90672509,1798.8,1798.7,1.11159]
[1745971276385,5.68576509,1798.8,1798.5,4.0606]
[1745971276689,1.17848509,1798.6,1798.5,4.31952]
[1745971277393,0.06679509,1798.6,1798.5,4.31952]
[1745971277892,0.06679509,1798.6,1798.5,5.10972]
[1745971279094,1.17848509,1798.6,1798.5,4.31952]
[1745971279592,1.17848509,1798.6,1798.5,3.2078]
[1745971279894,1.11193,1798.3,1798.2,1.11187]
[1745971280091,1.17872509,1798.3,1798.2,1.11187]
[1745971284790,2.80342509,1798.3,1798.2,1.11187]
[1745971285898,1.112,1798.2,1798.1,1.11195]
[1745971286196,3.5408,1798.2,1798.1,1.11195]
[1745971286393,3.60759509,1798.2,1798.1,1.11195]
[1745971288684,3.60759509,1798.2,1798.0,5.6001]
[1745971288890,2.80739509,1798.1,1798.0,1.11205]
[1745971292597,1.11213,1797.9,1797.8,5.14852]
[1745971292797,1.17892509,1797.9,1797.8,1.94072]
[1745971293191,3.73582509,1797.9,1797.8,1.94072]
[1745971294497,1.79829509,1797.9,1797.8,1.94072]
[1745971294692,1.79829509,1797.9,1797.8,3.59432]
[1745971294896,2.81918,1798.2,1798.1,1.112]
[1745971295097,4.54127509,1798.2,1798.1,1.112]
[1745971297300,1.112,1798.1,1798.0,2.76566]
[1745971297492,2.76499509,1798.1,1798.0,1.11206]
[1745971298600,1.65299509,1798.1,1798.0,1.11206]
[1745971298894,6.8548,1798.3,1798.2,1.11194]
[1745971299295,3.27459509,1798.3,1798.2,1.11194]
[1745971299497,3.27459509,1798.3,1798.2,2.81764]
[1745971299695,3.27459509,1798.3,1798.2,3.64224]
[1745971300901,2.77913,1798.7,1798.2,3.64224]
[1745971300902,3.2078,1798.8,1798.7,1.11163]
[1745971301095,3.27459509,1798.8,1798.7,1.11163]
[1745971301295,0.06679509,1798.8,1798.7,1.11163]
[1745971301500,0.06679509,1798.8,1798.7,2.75533]
[1745971302592,6.8498,1799.0,1798.8,1.11157]
[1745971302801,0.06679509,1798.9,1798.8,2.75527]
[1745971303298,3.642,1799.3,1799.2,1.11132]
[1745971303596,4.31905,1799.4,1799.0,2.77862]
[1745971303597,3.2078,1799.4,1799.0,2.77862]
[1745971303802,1.6894,1799.6,1799.5,1.11114]
[1745971304003,0.06679509,1799.6,1799.5,1.11114]
[1745971304203,6.8498,1799.8,1799.7,1.11101]
[1745971304404,7.96075,1799.8,1799.7,1.11101]
[1745971304599,1.75619509,1799.8,1799.7,1.11101]
[1745971305796,0.06679509,1799.8,1799.7,1.11101]
[1745971306401,4.0157,1800.0,1799.9,1.11089]
[1745971306601,5.7024,1800.0,1799.9,1.11089]
[1745971306802,5.76919509,1800.0,1799.9,1.11089]
[1745971307311,1.11094,1799.9,1799.8,1.11094]
[1745971307610,2.79764,1799.9,1799.8,1.11094]
[1745971307903,1.75349509,1799.9,1799.8,1.11094]
[1745971308098,2.86438509,1799.9,1799.8,1.11094]
[1745971308605,1.11095,1799.8,1799.7,2.69717]
[1745971308806,0.06679509,1799.8,1799.7,2.69721]
[1745971309606,1.17774509,1799.8,1799.7,2.69721]
[1745971309808,1.76799509,1799.8,1799.7,2.69721]
[1745971310004,4.0157,1800.0,1799.7,6.5862]
[1745971310005,3.2078,1800.0,1799.7,6.5862]
[1745971310308,3.2078,1800.4,1800.3,1.11061]
[1745971312411,3.2078,1800.4,1800.3,6.11061]
[1745971312813,4.41958,1800.8,1800.4,1.11058]
[1745971313011,3.2078,1801.2,1801.1,1.11015]
[1745971313205,3.27459509,1801.2,1801.1,1.11015]
[1745971314304,3.2078,1801.2,1801.1,1.11015]
[1745971314811,4.31789,1801.2,1801.0,1.11018]
[1745971315002,0.06679509,1801.0,1800.8,0.8203]
[1745971315209,1.65659509,1800.9,1800.8,1.11031]
[1745971315410,1.65659509,1800.9,1800.8,2.72001]
[1745971315612,1.5898,1800.9,1800.8,2.72001]
[1745971316815,1.5898,1800.9,1800.8,2.72003]
[1745971317410,2.70007,1800.9,1800.8,2.72003]
[1745971317716,1.65659509,1800.9,1800.6,1.11042]
[1745971317922,0.06679509,1800.7,1800.6,1.11042]
[1745971318517,0.06679509,1800.7,1800.5,5.3295]
[1745971318817,1.79639509,1800.6,1800.4,2.80564]
[1745971319015,2.90687509,1800.6,1800.5,1.11052]
[1745971319212,2.90685509,1800.6,1800.5,2.80562]
[1745971319414,2.90685509,1800.6,1800.5,1.6951]
[1745971319614,2.90685509,1800.6,1800.5,2.80562]
[1745971319918,1.79639509,1800.6,1800.5,2.80562]
[1745971320317,2.90685509,1800.6,1800.5,2.80562]
[1745971320614,2.90685509,1800.6,1800.3,1.11058]
[1745971320615,1.11052,1800.5,1800.3,1.11058]
[1745971320820,1.7296,1800.4,1800.3,2.80568]
[1745971321014,1.7296,1800.4,1800.2,7.9565]
[1745971321211,0.06679509,1800.3,1799.8,9.50046]
[1745971321408,1.17757509,1800.1,1800.0,1.1108]
[1745971321607,1.11078,1800.1,1800.0,1.1108]
[1745971322114,1.11089,1799.9,1799.7,3.2078]
[1745971322312,0.06679509,1799.9,1799.8,1.11091]
[1745971322818,1.6958,1800.0,1799.8,1.1109]
[1745971323020,0.06679509,1799.9,1799.8,1.1109]
[1745971323721,1.6958,1799.9,1799.8,1.1109]
[1745971325016,2.80669,1799.9,1799.8,1.1109]
[1745971325222,2.80669,1799.9,1799.7,4.9066]
[1745971325417,2.80669,1799.9,1799.8,1.11095]
[1745971325618,1.17774509,1799.8,1799.7,6.01757]
[1745971325813,2.90104509,1799.8,1799.7,6.01757]
[1745971326117,1.7233,1799.8,1799.7,6.01757]
[1745971326317,2.83425,1799.8,1799.7,6.01757]
[1745971326516,1.79009509,1799.8,1799.7,6.01757]
[1745971327220,1.79009509,1799.8,1799.6,1.11105]
[1745971327415,0.06679509,1799.7,1799.6,2.68865]
[1745971328722,1.67979509,1799.7,1799.6,2.68865]
[1745971329420,2.79080509,1799.7,1799.6,2.68865]
[1745971331616,2.79080509,1799.7,1799.6,1.11105]
[1745971334522,1.67979509,1799.7,1799.4,1.6298]
[1745971334723,1.1112,1799.4,1799.3,1.11125]
[1745971335022,1.1113,1799.3,1799.2,1.11126]
[1745971335324,2.78169509,1799.3,1799.2,1.11126]
[1745971336524,1.11132,1799.2,1799.1,1.11134]
[1745971336717,2.75671509,1799.2,1799.1,1.11134]
[1745971337218,1.64539509,1799.2,1799.1,1.11134]
[1745971337414,1.5786,1799.2,1799.1,1.11134]
[1745971337619,0.8247,1799.4,1799.3,1.11126]
[1745971337820,2.4033,1799.4,1799.3,1.11126]
[1745971338027,2.47009509,1799.4,1799.3,1.11126]
[1745971338625,1.96194,1799.5,1799.4,1.1112]
[1745971338823,1.17802509,1799.4,1799.3,1.11121]
[1745971339226,0.06679509,1799.4,1799.3,1.11121]
[1745971339426,3.635,1799.6,1799.2,5.2994]
[1745971339620,3.635,1799.6,1799.5,1.11114]
[1745971339819,3.70179509,1799.6,1799.5,1.11114]
[1745971340017,4.0052,1799.9,1799.8,1.11095]
[1745971340217,5.6989,1799.9,1799.8,1.11095]
[1745971340422,1.76049509,1799.9,1799.8,1.11095]
[1745971340826,1.6937,1799.9,1799.8,1.11095]
[1745971341327,2.80459,1799.9,1799.8,1.11095]
[1745971341527,1.6937,1799.9,1799.8,1.11095]
[1745971342023,2.87138509,1799.9,1799.8,1.11095]
[1745971342224,4.96829509,1799.9,1799.8,1.11095]
[1745971342424,4.74688,1800.0,1799.7,2.4117]
[1745971342425,4.74688,1800.0,1799.9,1.11089]
[1745971342627,6.01231,1800.1,1800.0,1.11083]
[1745971342923,4.96829509,1800.1,1799.7,5.18913]
[1745971343129,3.27459509,1800.1,1800.0,1.11083]
[1745971343324,3.2078,1800.1,1800.0,1.11083]
[1745971343923,3.2078,1800.1,1800.0,2.71333]
[1745971345429,4.74669,1800.3,1800.2,1.1107]
[1745971345822,6.44218509,1800.3,1800.2,1.1107]
[1745971347632,1.11073,1800.2,1800.1,1.11071]
[1745971347819,2.83362509,1800.2,1800.1,1.11071]
[1745971348026,2.83362509,1800.2,1800.1,1.14421]
[1745971348529,1.72289509,1800.2,1800.1,1.14421]
[1745971348729,2.83359509,1800.2,1800.1,1.14421]
[1745971349132,3.66819509,1800.2,1800.1,1.14421]
[1745971350830,2.55749509,1800.2,1800.1,1.14421]
[1745971351031,3.66819509,1800.2,1800.1,1.14421]
[1745971351229,11.87599509,1800.2,1800.1,0.0335]
[1745971351427,2.77708,1800.0,1799.4,5.556]
[1745971351628,1.17782509,1799.7,1799.6,1.11103]
[1745971351929,1.11114,1799.5,1799.4,1.6554]
[1745971352139,2.778,1799.4,1798.8,0.7878]
[1745971352432,2.778,1799.4,1798.8,5.22962]
[1745971352433,3.2078,1799.2,1798.8,5.22962]
[1745971352625,3.635,1799.1,1799.0,1.11145]
[1745971354042,3.635,1799.1,1798.8,1.11153]
[1745971354043,1.11151,1798.9,1798.8,1.11153]
[1745971354234,1.6339,1799.0,1798.8,1.11153]
[1745971354429,1.11157,1798.8,1798.7,2.77451]
[1745971354635,4.74757,1798.8,1798.7,1.11163]
[1745971354937,4.74759,1798.8,1798.7,1.11163]
[1745971355137,6.47109,1798.8,1798.7,1.11163]
[1745971355439,4.8471,1798.8,1798.7,1.11163]
[1745971355642,3.1236,1798.8,1798.7,1.11163]
[1745971355838,3.2078,1798.9,1798.8,1.11157]
[1745971356136,6.8438,1798.9,1798.8,1.11157]
[1745971357632,3.2078,1798.9,1798.8,1.11157]
[1745971357833,8.5663,1798.9,1798.8,1.11157]
[1745971358840,5.3585,1798.9,1798.8,1.11157]
[1745971360639,4.31919,1799.1,1799.0,1.11145]
[1745971360834,3.64981,1799.4,1799.1,3.88983]
[1745971360835,0.8718,1799.4,1799.1,3.88983]
[1745971361035,1.983,1799.4,1799.3,1.11126]
[1745971361229,5.618,1799.4,1799.3,1.11126]
[1745971361438,4.5068,1799.4,1799.3,1.11126]
[1745971362734,5.618,1799.4,1799.3,1.11126]
[1745971362941,1.1113,1799.3,1799.1,1.11138]
[1745971363141,1.98304,1799.4,1799.3,1.11126]
[1745971363344,5.61804,1799.4,1799.3,1.11126]
[1745971364642,1.1113,1799.3,1799.2,1.11128]
[1745971364841,5.61805,1799.4,1799.3,1.11126]
[1745971365041,4.5068,1799.4,1798.9,5.902]
[1745971365332,1.11145,1799.0,1798.9,5.902]
[1745971365534,1.11151,1798.9,1798.8,1.11152]
[1745971365737,6.00907,1798.9,1798.8,1.11157]
[1745971368841,4.8975,1798.9,1798.8,1.11157]
[1745971370246,6.00901,1798.9,1798.8,1.11157]
[1745971373646,1.11157,1798.8,1798.7,1.38648]
[1745971373944,1.11157,1798.8,1798.5,4.36709]
[1745971374143,4.74764,1798.7,1798.6,1.11169]
[1745971374345,3.636,1798.7,1798.6,1.11169]
[1745971374945,5.3469,1798.7,1798.6,1.11169]
[1745971375545,6.45853,1798.7,1798.6,1.11169]
[1745971375740,5.3469,1798.7,1798.6,1.11169]
[1745971376342,6.45853,1798.7,1798.6,1.11169]
[1745971376543,5.3469,1798.7,1798.6,1.11169]
[1745971376843,8.5547,1798.7,1798.6,1.11169]
[1745971377347,9.66633,1798.7,1798.6,1.11169]
[1745971380849,8.5547,1798.7,1798.6,1.11169]
[1745971381251,9.66633,1798.7,1798.6,1.11169]
[1745971383649,8.5547,1798.7,1798.3,1.7336]
[1745971383950,1.11182,1798.4,1798.3,1.11186]
[1745971384150,1.11182,1798.4,1798.1,3.70907]
[1745971384151,1.11194,1798.2,1798.1,3.70907]
[1745971384348,1.11194,1798.2,1798.1,1.11197]
[1745971384748,2.73384,1798.2,1798.1,1.11197]
[1745971385749,2.73384,1798.2,1798.0,0.2751]
[1745971385750,1.112,1798.1,1798.0,0.2751]
[1745971385955,6.4121,1798.1,1798.0,0.2751]
[1745971386355,3.636,1798.1,1798.0,0.2751]
[1745971386555,3.636,1798.1,1798.0,1.38716]
[1745971386759,4.748,1798.1,1798.0,0.2751]
[1745971386950,4.748,1798.1,1798.0,1.38716]
[1745971387145,4.748,1798.1,1798.0,0.2751]
[1745971387554,7.9558,1798.1,1798.0,0.2751]
[1745971388455,1.11213,1798.0,1797.9,1.11212]
[1745971388657,1.11214,1797.9,1797.8,1.11214]
[1745971388959,5.12824,1797.9,1797.8,1.11214]
[1745971389149,5.94694,1797.9,1797.8,1.11214]
[1745971389352,5.94694,1797.9,1797.7,1.6416]
[1745971389353,4.8348,1797.9,1797.6,1.1123]
[1745971389552,3.2078,1797.7,1797.6,1.1123]
[1745971390053,4.9272,1797.7,1797.6,1.1123]
[1745971391155,3.2078,1797.7,1797.6,1.1123]
[1745971391352,4.0161,1797.9,1797.8,1.11219]
[1745971391551,7.6511,1797.9,1797.8,1.11219]
[1745971391752,9.3189,1797.9,1797.8,1.11219]
[1745971391950,9.3189,1797.9,1797.8,2.85389]
[1745971394562,5.6839,1797.9,1797.8,2.85389]
[1745971394755,10.43103,1797.9,1797.8,2.85389]
[1745971394951,1.11219,1797.8,1797.7,0.2751]
[1745971395151,2.82549,1797.8,1797.7,1.38735]
[1745971395561,2.82549,1797.8,1797.7,1.11225]
[1745971395862,1.11225,1797.7,1797.6,7.01426]
[1745971396162,3.67405,1797.7,1797.6,7.01426]
[1745971396355,2.5618,1797.7,1797.6,7.01426]
[1745971397163,3.67405,1797.7,1797.6,7.01426]
[1745971397351,2.5618,1797.7,1797.6,7.01426]
[1745971398559,3.67405,1797.7,1797.6,7.01426]
[1745971399361,2.5618,1797.7,1797.6,7.01426]
[1745971399563,2.5618,1797.7,1797.6,1.11226]
[1745971402463,3.67405,1797.7,1797.6,1.11226]
[1745971402657,2.5618,1797.7,1797.6,1.11226]
[1745971402858,3.67405,1797.7,1797.6,1.11226]
[1745971403163,2.5618,1797.7,1797.6,1.11226]
[1745971403364,3.67405,1797.7,1797.6,1.11226]
[1745971404864,1.11231,1797.6,1797.5,1.38752]
[1745971405067,6.45481,1797.6,1797.5,1.38752]
[1745971405258,6.45481,1797.6,1797.5,1.11232]
[1745971405662,1.11237,1797.5,1797.4,5.6758]
[1745971405864,2.5677,1797.5,1797.2,5.902]
[1745971406061,4.32033,1797.3,1797.2,1.11254]
[1745971406261,7.95633,1797.3,1797.2,1.11254]
[1745971406664,1.11256,1797.2,1797.1,1.5975]
[1745971406865,2.82886,1797.2,1797.1,2.71012]
[1745971407262,1.11265,1797.1,1797.0,1.11264]
[1745971407468,1.11268,1797.0,1796.9,8.6852]
[1745971407673,4.74868,1797.0,1796.9,7.8131]
[1745971407963,13.13402,1797.0,1796.5,5.902]
[1745971408169,1.11298,1796.6,1796.4,1.11304]
[1745971408371,1.11298,1796.6,1796.4,1.11305]
[1745971408372,8.2848,1796.5,1796.4,1.11305]
[1745971409071,5.077,1796.5,1796.4,1.11305]
[1745971409266,8.2848,1796.5,1796.4,1.11305]
[1745971409573,8.2848,1796.5,1796.2,2.4861]
[1745971409773,1.11307,1796.4,1796.2,3.59925]
[1745971409969,4.32095,1796.3,1796.1,1.11323]
[1745971410171,2.78311,1796.1,1795.1,2.78458]
[1745971410361,1.1134,1795.9,1795.4,5.902]
[1745971410566,3.637,1795.8,1795.7,1.11345]
[1745971411063,3.637,1795.8,1795.5,5.6649]
[1745971411270,3.637,1795.8,1795.7,1.11349]
[1745971411571,6.8448,1796.2,1796.0,1.11324]
[1745971411769,9.62848,1796.2,1796.0,1.11324]
[1745971412481,8.5153,1796.2,1795.8,1.6158]
[1745971412777,6.8448,1796.2,1796.1,1.11324]
[1745971412974,1.11284,1796.8,1796.6,1.11291]
[1745971413277,1.11288,1796.7,1796.5,1.11296]
[1745971413472,5.97088,1796.7,1796.5,1.11296]
[1745971413673,4.858,1796.7,1796.6,1.11293]
[1745971413865,1.11296,1796.6,1796.4,2.68513]
[1745971414070,6.40109,1796.7,1796.5,1.11297]
[1745971414273,5.2882,1796.7,1796.6,1.11293]
[1745971414472,6.40107,1796.7,1796.5,2.68509]
[1745971414977,1.6502,1796.6,1796.5,1.5721]
[1745971415175,1.6502,1796.6,1796.5,2.68509]
[1745971415476,1.6502,1796.6,1796.3,4.0285]
[1745971415674,2.76315,1796.6,1796.3,5.6006]
[1745971415975,1.6502,1796.6,1796.4,1.6195]
[1745971416176,3.2078,1796.9,1796.6,1.11293]
[1745971416372,3.2078,1796.9,1796.5,3.2078]
[1745971416565,6.8458,1796.9,1796.6,2.4708]
[1745971416770,6.8458,1796.9,1796.8,1.11281]
[1745971417075,6.8458,1796.9,1796.7,2.73237]
[1745971417276,1.6291,1796.8,1796.7,2.73237]
[1745971417579,2.74191,1796.8,1796.7,1.6195]
[1745971417777,1.6291,1796.8,1796.7,2.73237]
[1745971418776,1.6291,1796.8,1796.7,1.11287]
[1745971418977,0.8672,1797.0,1796.7,3.2078]
[1745971419182,1.6583,1797.1,1797.0,1.11268]
[1745971419374,3.655,1797.4,1796.9,5.9896]
[1745971419574,4.76744,1797.4,1797.3,1.1125]
[1745971419770,4.76745,1797.4,1797.2,1.11252]
[1745971419974,4.76745,1797.4,1797.3,1.6623]
[1745971420175,6.42575,1797.4,1797.3,1.6623]
[1745971420375,1.11232,1797.6,1797.4,1.11244]
[1745971420576,7.97507,1797.7,1797.5,2.77466]
[1745971420777,1.11231,1797.6,1797.5,1.6623]
[1745971421071,2.77061,1797.6,1797.5,1.6623]
[1745971421479,1.11237,1797.5,1797.4,5.902]
[1745971421676,2.77067,1797.5,1797.4,5.902]
[1745971421879,3.60227,1797.5,1797.4,5.902]
[1745971424582,1.11256,1797.2,1797.1,3.2078]
[1745971424789,4.76753,1797.3,1797.0,1.5751]
[1745971425086,6.4905,1797.3,1797.2,1.11256]
[1745971425281,5.378,1797.3,1797.2,1.11256]
[1745971425588,3.655,1797.3,1797.2,1.11256]
[1745971426182,3.655,1797.3,1797.2,4.39086]
[1745971426985,4.7675,1797.3,1797.2,4.39086]
[1745971427287,3.655,1797.3,1797.2,4.39086]
[1745971430596,1.11242,1797.5,1797.4,1.11244]
[1745971431184,1.11241,1797.5,1797.4,1.11241]
[1745971431588,5.281,1797.6,1797.3,1.5884]
[1745971431789,1.11244,1797.4,1797.3,7.4904]
[1745971432792,1.11244,1797.4,1797.3,5.902]
[1745971433390,1.97184,1797.4,1797.3,5.902]
[1745971434193,3.64784,1797.4,1797.3,5.902]
[1745971434691,3.64784,1797.4,1797.3,7.0145]
[1745971434891,3.64784,1797.4,1797.3,8.6934]
[1745971435091,3.64784,1797.4,1797.3,7.5809]
[1745971435289,3.64784,1797.4,1797.3,8.6934]
[1745971435590,3.64784,1797.4,1797.3,7.5809]
[1745971435789,3.64784,1797.4,1797.3,8.6934]
[1745971436191,1.676,1797.4,1797.3,8.6934]
[1745971436391,2.78844,1797.4,1797.3,7.5809]
[1745971436793,2.78844,1797.4,1797.3,8.6934]
[1745971437597,1.1125,1797.3,1797.2,7.01451]
[1745971437797,2.7797,1797.3,1797.2,7.01451]
[1745971437993,2.7797,1797.3,1797.2,8.71641]
[1745971438198,2.7797,1797.3,1797.2,5.902]
[1745971439998,7.65629,1797.3,1796.9,4.0146]
[1745971440194,1.11268,1797.0,1796.9,4.0146]
[1745971440601,1.11268,1797.0,1796.9,5.12734]
[1745971440800,1.11268,1797.0,1796.9,3.2078]
[1745971442897,1.11281,1796.8,1796.7,9.9737]
[1745971443201,1.11281,1796.8,1796.7,5.902]
[1745971443503,1.11299,1796.5,1796.4,1.6682]
[1745971444008,1.11299,1796.5,1796.4,2.78125]
[1745971444196,1.11299,1796.5,1796.4,5.4962]
[1745971444396,2.73819,1796.5,1796.4,5.4962]
[1745971445200,2.73819,1796.5,1796.4,2.78125]
[1745971445602,1.11299,1796.5,1796.4,2.78125]
[1745971446303,1.11299,1796.5,1796.4,7.39945]
[1745971446597,6.9016,1796.7,1796.4,6.2864]
[1745971446902,1.11299,1796.5,1796.4,5.73121]
[1745971448602,1.6942,1796.6,1796.4,4.6182]
[1745971448804,1.11299,1796.5,1796.4,5.73123]
[1745971449300,1.6942,1796.6,1796.4,10.5202]
[1745971449499,1.11299,1796.5,1796.4,9.73]